fUSD/lending_fUSD_20260313
["ID","MTS","AMOUNT","RATE_DAILY","PERIOD"]
[408325958,1773429031692,-6760.56,0.00019902,2]
[408325959,1773429031705,-400.0,0.0001997,2]
[408325960,1773429031722,-621.90362035,0.00019973,2]
[408325961,1773429031736,-161.62483646,0.00019973,2]
[408325963,1773429031758,-196.25165977,0.00019973,2]
[408325965,1773429031775,-502.204028,0.00019973,2]
[408325966,1773429031794,-500.0,0.00019973,2]
[408325967,1773429031808,-2864.1474936,0.0001998,2]
[408325968,1773429031821,-475.66916377,0.00019988,2]
[408325969,1773429031833,-2463.0,0.0001999,2]
[408325970,1773429031846,-3753.0,0.0001999,2]
[408325971,1773429031858,-151.0,0.00019997,2]
[408325974,1773429031874,-151.0,0.00019997,2]
[408325976,1773429031889,-151.0,0.00019997,2]
[408325978,1773429031900,-500.0,0.00019999,2]
[408325980,1773429031913,-506.77106008,0.00019999,2]
[408325981,1773429031924,-500.0,0.00019999,2]
[408325982,1773429031937,-500.0,0.00019999,2]
[408325983,1773429031951,-500.0,0.00019999,2]
[408325984,1773429031964,-500.0,0.00019999,2]
[408325985,1773429031975,-500.0,0.00019999,2]
[408325986,1773429031990,-500.0,0.00019999,2]
[408325987,1773429032004,-500.0,0.00019999,2]
[408325988,1773429032017,-500.0,0.00019999,2]
[408325989,1773429032037,-333.80551454,0.00019999,2]
[408325990,1773429032051,-500.0,0.00019999,2]
[408325991,1773429032064,-156.17,0.00019999,2]
[408325992,1773429032077,-1153.73881169,0.00019999,5]
[408325993,1773429032090,-500.0,0.00019999,2]
[408325994,1773429032103,-500.0,0.00019999,2]
[408325995,1773429032116,-500.0,0.00019999,2]
[408325996,1773429032129,-500.0,0.00019999,2]
[408325997,1773429032141,-500.0,0.00019999,2]
[408325998,1773429032153,-500.0,0.00019999,2]
[408325999,1773429032165,-500.0,0.00019999,2]
[408326000,1773429032182,-500.0,0.00019999,2]
[408326001,1773429032196,-500.0,0.00019999,2]
[408326002,1773429032209,-500.0,0.00019999,2]
[408326003,1773429032221,-506.82131153,0.00019999,2]
[408326004,1773429032233,-626.01963936,0.00019999,2]
[408326005,1773429032245,-500.0,0.00019999,2]
[408326006,1773429032258,-295.21489573,0.00019999,2]
[408326007,1773429032270,-500.0,0.00019999,2]
[408326008,1773429032283,-500.0,0.00019999,2]
[408326009,1773429032295,-500.0,0.00019999,2]
[408326010,1773429032308,-500.0,0.00019999,2]
[408326011,1773429032320,-500.0,0.00019999,2]
[408326012,1773429032333,-500.0,0.00019999,2]
[408326013,1773429032345,-500.0,0.00019999,2]
[408326014,1773429032357,-500.0,0.00019999,2]
[408326015,1773429032371,-500.0,0.00019999,2]
[408326016,1773429032382,-500.0,0.00019999,2]
[408326017,1773429032396,-500.0,0.00019999,2]
[408326018,1773429032408,-500.0,0.00019999,2]
[408326019,1773429032420,-500.0,0.00019999,2]
[408326020,1773429032431,-500.0,0.00019999,2]
[408326021,1773429032443,-500.0,0.00019999,2]
[408326022,1773429032454,-500.0,0.00019999,2]
[408326023,1773429032465,-500.0,0.00019999,2]
[408326024,1773429032476,-500.0,0.00019999,2]
[408326025,1773429032488,-500.0,0.00019999,2]
[408326026,1773429032500,-500.0,0.00019999,2]
[408326027,1773429032512,-500.0,0.00019999,2]
[408326028,1773429032525,-500.0,0.00019999,2]
[408326029,1773429032537,-500.0,0.00019999,2]
[408326030,1773429032548,-500.0,0.00019999,2]
[408326031,1773429032569,-500.0,0.00019999,2]
[408326032,1773429032585,-500.0,0.00019999,2]
[408326033,1773429032600,-500.0,0.00019999,2]
[408326034,1773429032617,-500.0,0.00019999,2]
[408326035,1773429032631,-500.0,0.00019999,2]
[408326036,1773429032646,-315.29875024,0.00019999,2]
[408326037,1773429032660,-500.0,0.00019999,2]
[408326038,1773429032676,-500.0,0.00019999,2]
[408326039,1773429032688,-500.0,0.00019999,2]
[408326040,1773429032701,-500.0,0.00019999,2]
[408326041,1773429032713,-500.0,0.00019999,2]
[408326042,1773429032727,-500.0,0.00019999,2]
[408326043,1773429032740,-178.09600392,0.00019999,2]
[408326044,1773429032752,-500.0,0.00019999,2]
[408326045,1773429032765,-174.42461385,0.00019999,2]
[408326046,1773429032778,-500.0,0.00019999,2]
[408326047,1773429032790,-500.0,0.00019999,2]
[408326048,1773429032802,-500.0,0.00019999,2]
[408326049,1773429032813,-500.0,0.00019999,2]
[408326050,1773429032825,-500.0,0.00019999,2]
[408326051,1773429032837,-500.0,0.00019999,2]
[408326052,1773429032850,-500.0,0.00019999,2]
[408326053,1773429032861,-500.0,0.00019999,2]
[408326054,1773429032874,-500.0,0.00019999,2]
[408326055,1773429032886,-500.0,0.00019999,2]
[408326056,1773429032898,-500.0,0.00019999,2]
[408326057,1773429032909,-500.0,0.00019999,2]
[408326058,1773429032921,-500.0,0.00019999,2]
[408326059,1773429032933,-431.52987502,0.00019999,2]
[408326060,1773429032944,-500.0,0.00019999,2]
[408326061,1773429032956,-500.0,0.00019999,2]
[408326062,1773429032968,-500.0,0.00019999,2]
[408326063,1773429032981,-163.9022288,0.00019999,2]
[408326064,1773429032993,-2237.0,0.0002,2]
[408326065,1773429033006,-61924.61829754,0.0002,2]
[408326066,1773429033023,-53296.52985647,0.0002,2]
[408326067,1773429033038,-21072.75626025,0.0002,2]
[408326068,1773429033055,-4526.83668561,0.0002,2]
[408326069,1773429033076,-2645.99592063,0.0002,2]
[408326070,1773429033092,-1132.53506354,0.0002,2]
[408326071,1773429033104,-605.6100191,0.0002,2]
[408326072,1773429033115,-805.47043148,0.0002,2]
[408326083,1773429037616,-2000.0,0.00019992,2]
[408326084,1773429037626,-1792.0,0.0002,2]
[408326085,1773429037636,-6342.39340091,0.0002,2]
[408326086,1773429037650,-1833.85378348,0.0002,2]
[408326087,1773429037661,-1227.79687565,0.0002,2]
[408326088,1773429037678,-3307.40658349,0.0002,2]
[408326089,1773429037689,-14597.3646551,0.0002,2]
[408326090,1773429037701,-564.0886184,0.0002,2]
[408326091,1773429037713,-125039.44678351,0.0002,2]
[408326092,1773429037728,-2097.6140157,0.0002,2]
[408326093,1773429037780,-10082.27454813,0.0002,2]
[408326094,1773429037791,-638.55537377,0.0002,2]
[408326095,1773429037803,-3572.87009396,0.0002,2]
[408326096,1773429037813,-4000.0,0.0002,2]
[408326097,1773429037825,-1542.02172142,0.0002,2]
[408326098,1773429037840,-11700.315341,0.0002,2]
[408326099,1773429037852,-12006.29957838,0.0002,2]
[408326100,1773429037864,-39596.36529649,0.0002,2]
[408326101,1773429037876,-2353.5380745,0.0002,2]
[408326102,1773429037889,-2320.58896356,0.0002,2]
[408326150,1773429038818,-342095.76317384,0.0002,2]
[408326151,1773429040032,-2673319.72115085,0.0002,2]
[408326152,1773429040042,-298518.94510443,0.0002,2]
[408326153,1773429040052,-818.70006504,0.0002,3]
[408326154,1773429040062,-1455355.61525436,0.0002,2]
[408326155,1773429040241,-767.0,0.0002,2]
[408326156,1773429040253,-4975.74,0.0002,2]
[408326157,1773429040265,-4420.99119729,0.0002,2]
[408326158,1773429040294,-1838.55827639,0.0002,2]
[408326169,1773429042588,-335.04991627,0.0001999,2]
[408326176,1773429042643,-5662.95008373,0.0001999,2]
[408326177,1773429042654,-44985.50495793,0.0002,2]
[408326178,1773429042666,-13806.49852819,0.0002,2]
[408326179,1773429042750,-823.3880549,0.0002,2]
[408326188,1773429045524,-420.02,0.0002,2]
[408326189,1773429045744,-2921.9846433,0.0002,2]
[408326190,1773429045756,-500.0,0.0002,2]
[408326191,1773429045796,-7546.56026583,0.0002,2]
[408326192,1773429045872,-38207.16900376,0.0002,2]
[408326197,1773429806819,3165.33,0.00032877,120]
[408326198,1773430028097,-481.58573656,0.00016136,2]
[408326199,1773430172110,-1137.64426344,0.00016136,2]
[408326200,1773430172134,-2443.68156574,0.0001775,2]
[408326201,1773430172154,-2006.26099993,0.0001775,2]
[408326202,1773430172175,-250.0,0.0001775,2]
[408326203,1773430172196,-341.0,0.00017848,2]
[408326204,1773430172218,-338.46702539,0.000179,2]
[408326205,1773430172242,-341.0,0.00017919,2]
[408326206,1773430172263,-187.06800833,0.00017945,2]
[408326222,1773430231658,-153.93199167,0.00017945,2]
[408326223,1773430231668,-168.0,0.00018276,2]
[408326224,1773430231679,-630.0,0.00018329,2]
[408326225,1773430231689,-500.0,0.00018466,2]
[408326226,1773430231699,-2567.42,0.00018504,2]
[408326227,1773430231709,-500.0,0.00018647,2]
[408326228,1773430231719,-2261.39722601,0.00018652,2]
[408326229,1773430231729,-480.0,0.00018719,2]
[408326230,1773430231738,-848.0,0.0001872,2]
[408326231,1773430231747,-168.0,0.00018747,2]
[408326232,1773430231757,-168.0,0.00018777,2]
[408326233,1773430231767,-376.89953767,0.0001882,2]
[408326234,1773430231777,-2567.42,0.00018967,2]
[408326235,1773430231788,-500.0,0.00018993,2]
[408326236,1773430231797,-174.61919141,0.00018993,2]
[408326237,1773430231807,-200.0,0.00018993,2]
[408326238,1773430231817,-376.89953767,0.00019006,2]
[408326239,1773430231826,-376.89953767,0.00019193,2]
[408326240,1773430231836,-168.0,0.00019207,2]
[408326241,1773430231845,-1225.0,0.00019351,2]
[408326242,1773430231855,-2567.42,0.00019429,2]
[408326243,1773430231865,-175.82958676,0.000195,2]
[408326244,1773430231876,-1338.77015034,0.000195,2]
[408326245,1773430231888,-485.4002629,0.000195,2]
[408326246,1773430231898,-528.0,0.00019532,2]
[408326247,1773430231908,-181.08010149,0.00019541,2]
[408326248,1773430231918,-200.0,0.00019541,2]
[408326250,1773430231927,-153.32,0.00019553,2]
[408326252,1773430231937,-1620.0,0.00019566,2]
[408326253,1773430231950,-528.0,0.00019651,2]
[408326254,1773430231959,-160.0,0.00019657,2]
[408326255,1773430231969,-4828.97,0.00019711,2]
[408326256,1773430231979,-150.0,0.00019714,2]
[408326257,1773430231989,-261.14236726,0.00019714,2]
[408326258,1773430231999,-150.0,0.00019714,2]
[408326259,1773430232010,-150.0,0.00019714,2]
[408326260,1773430232022,-150.0,0.00019714,2]
[408326261,1773430232042,-150.0,0.00019726,2]
[408326262,1773430232053,-150.0,0.00019726,2]
[408326263,1773430232063,-150.0,0.00019726,2]
[408326264,1773430232073,-150.0,0.00019726,2]
[408326265,1773430232084,-150.0,0.00019726,2]
[408326266,1773430232094,-150.0,0.00019726,2]
[408326267,1773430232104,-150.0,0.00019769,2]
[408326268,1773430232113,-150.0,0.00019769,2]
[408326269,1773430232123,-150.0,0.00019769,2]
[408326270,1773430232133,-150.0,0.00019769,2]
[408326271,1773430232143,-150.0,0.00019781,2]
[408326272,1773430232153,-189.02833558,0.00019781,2]
[408326273,1773430232162,-457.0501,0.000198,2]
[408326274,1773430232172,-463.50109,0.000198,2]
[408326275,1773430232183,-463.5011,0.000198,2]
[408326276,1773430232192,-463.50109,0.000198,2]
[408326277,1773430232202,-463.50109,0.000198,2]
[408326278,1773430232212,-2038.0,0.000198,2]
[408326279,1773430232222,-200.0,0.00019824,2]
[408326280,1773430232232,-184.0,0.00019824,2]
[408326281,1773430232242,-250.0,0.00019824,2]
[408326282,1773430232252,-250.0,0.00019824,2]
[408326283,1773430232262,-153.56106976,0.00019829,2]
[408326284,1773430232272,-158.71326845,0.00019836,2]
[408326285,1773430232282,-181.956,0.00019887,2]
[408326286,1773430232291,-2741.508,0.00019887,2]
[408326287,1773430232301,-2567.42,0.00019892,2]
[408326288,1773430232310,-38305.9106,0.000199,2]
[408326289,1773430232321,-1000.0,0.000199,2]
[408326290,1773430232330,-2918.1471,0.000199,2]
[408326291,1773430232340,-6523.55473746,0.000199,2]
[408326292,1773430232352,-7058.59652016,0.000199,2]
[408326293,1773430232362,-169.23,0.00019914,2]
[408326294,1773430232372,-332.0,0.00019973,2]
[408326295,1773430232382,-223.00367223,0.00019978,2]
[408326296,1773430232392,-151.0,0.00019997,2]
[408326297,1773430232406,-500.0,0.00019999,2]
[408326298,1773430232415,-507.50732285,0.00019999,2]
[408326299,1773430232425,-500.0,0.00019999,2]
[408326300,1773430232435,-500.0,0.00019999,2]
[408326301,1773430232445,-500.0,0.00019999,2]
[408326302,1773430232455,-469.00628755,0.00019999,2]
[408326303,1773430232696,-30.99371245,0.00019999,2]
[408326304,1773430232707,-500.0,0.00019999,2]
[408326305,1773430232721,-192.75628255,0.00019999,2]
[408326306,1773430232732,-307.24371745,0.00019999,2]
[408326307,1773430232742,-515.52448038,0.00019999,2]
[408326308,1773430232752,-501.88920658,0.00019999,2]
[408326309,1773430232762,-540.40783545,0.00019999,2]
[408326310,1773430232771,-390.78400197,0.00019999,2]
[408326311,1773430232784,-109.21599803,0.00019999,2]
[408326312,1773430232793,-214.51,0.00019999,2]
[408326313,1773430232803,-206.65042701,0.00019999,2]
[408326314,1773430232813,-336.08357496,0.00019999,2]
[408326315,1773430232825,-163.91642504,0.00019999,2]
[408326316,1773430232835,-500.0,0.00019999,2]
[408326317,1773430232844,-500.0,0.00019999,2]
[408326318,1773430232853,-643.15298751,0.00019999,2]
[408326319,1773430232863,-192.93058745,0.0002,2]
[408326320,1773430232875,-577.10754383,0.0002,2]
[408326321,1773430232887,-484.55790331,0.0002,2]
[408326322,1773430232898,-374.40396541,0.0002,2]
[408326323,1773430232908,-127.1234444,0.0002,2]
[408326324,1773430232920,-460.51348595,0.0002,2]
[408326325,1773430232932,-831.64957871,0.0002,2]
[408326326,1773430232948,-491.38023017,0.0002,2]
[408326331,1773430237783,-372.3311382,0.000199,2]
[408326332,1773430237793,-472.0972297,0.00019999,2]
[408326333,1773430237802,-10599.23933182,0.0002,2]
[408326334,1773430237813,-5486.62137138,0.0002,2]
[408326357,1773430243015,-656926.71741467,0.0002,2]
[408326369,1773430245666,-500.0,0.00019999,2]
[408326370,1773430245676,-219.30511258,0.00019999,2]
[408326371,1773430245686,-70.59074242,0.0002,2]
[408326372,1773430245723,-420.72,0.0002,2]
[408326373,1773430245986,-1014.68925758,0.0002,2]
[408326374,1773430245996,-8260.75960341,0.0002,2]
[408326375,1773430246093,-211248.57054003,0.0002,2]
[408326376,1773430246105,-138897.33027411,0.0002,2]
[408326383,1773430287362,1334.0,0.0003287,120]
[408326384,1773430288143,272.0,0.0003287,120]
[408326385,1773430288917,175.0,0.0003287,120]
[408326386,1773430291443,409.0,0.0003287,120]
[408326387,1773430344513,1629.0,0.0003287,120]
[408326388,1773430345292,1935.0,0.0003287,120]
[408326389,1773430346090,481.0,0.0003287,120]
[408326393,1773430983539,182.29,0.00025472,120]
[408326394,1773430983738,182.29,0.00027787,120]
[408326395,1773431007117,5926.1,0.0002,10]
[408326397,1773431140142,-324.67480284,0.00016952,2]
[408326398,1773431150487,-675.92503717,0.00016952,2]
[408326399,1773431150507,-376.89953767,0.00016957,2]
[408326400,1773431150530,-448.519315,0.00017792,2]
[408326401,1773431150549,-940.86976701,0.00017882,2]
[408326406,1773431431817,-166.66,0.00017895,2]
[408326407,1773431431828,-166.66,0.00018272,2]
[408326408,1773431431838,-500.0,0.00018496,2]
[408326409,1773431432083,-182.29,0.00018525,2]
[408326410,1773431432094,-715.09,0.00018533,2]
[408326411,1773431432104,-200.0,0.00018572,2]
[408326412,1773431432113,-192.6,0.00018621,2]
[408326413,1773431432122,-166.66,0.00018649,2]
[408326414,1773431432131,-2790.0,0.0001872,2]
[408326415,1773431432141,-2129.16,0.00018762,2]
[408326416,1773431432150,-168.0,0.00018838,2]
[408326417,1773431432160,-224.81,0.00018859,2]
[408326418,1773431432169,-54040.7342,0.00018897,2]
[408326419,1773431432178,-1200.0,0.00018923,2]
[408326420,1773431432188,-300.0,0.00018924,2]
[408326421,1773431432198,-4061.60430478,0.00018925,2]
[408326422,1773431432207,-200.0,0.00018985,2]
[408326423,1773431432216,-151.0,0.00018985,2]
[408326424,1773431432226,-151.0,0.00018985,2]
[408326425,1773431432235,-151.0,0.00018985,2]
[408326426,1773431432245,-151.0,0.00018985,2]
[408326427,1773431432255,-151.0,0.00018985,2]
[408326428,1773431432264,-151.0,0.00018985,2]
[408326429,1773431432275,-151.0,0.00018985,2]
[408326430,1773431432286,-151.0,0.00018985,2]
[408326431,1773431432300,-151.0,0.00018985,2]
[408326432,1773431432310,-260.48870101,0.00018985,2]
[408326433,1773431432320,-300.0,0.00018992,2]
[408326434,1773431432329,-1265.09428998,0.00018993,2]
[408326435,1773431432339,-500.0,0.00018993,2]
[408326436,1773431432348,-500.0,0.00018993,2]
[408326437,1773431432357,-500.0,0.00018993,2]
[408326438,1773431432366,-500.0,0.00018993,2]
[408326439,1773431432375,-500.0,0.00018993,2]
[408326440,1773431432384,-500.0,0.00018993,2]
[408326441,1773431432393,-500.0,0.00018993,2]
[408326442,1773431432402,-500.0,0.00018993,2]
[408326443,1773431432412,-500.0,0.00018993,2]
[408326444,1773431432421,-250.0,0.00018993,2]
[408326445,1773431432430,-500.0,0.00018993,2]
[408326446,1773431432439,-500.0,0.00018993,2]
[408326447,1773431432448,-500.0,0.00018993,2]
[408326448,1773431432459,-174.61919141,0.00018993,2]
[408326449,1773431432468,-250.0,0.00018993,2]
[408326450,1773431432478,-200.0,0.00018993,2]
[408326451,1773431432491,-500.0,0.00018993,2]
[408326452,1773431432500,-17721.53,0.00018997,2]
[408326453,1773431432510,-168.0,0.00019019,2]
[408326454,1773431432520,-166.66,0.00019025,2]
[408326455,1773431432530,-1336.89,0.00019078,2]
[408326456,1773431432540,-916.66,0.00019106,2]
[408326457,1773431432550,-1593.15,0.00019106,2]
[408326458,1773431432560,-166.66,0.00019164,2]
[408326459,1773431432570,-168.0,0.00019168,2]
[408326460,1773431432580,-168.0,0.00019184,2]
[408326461,1773431432589,-168.0,0.00019252,2]
[408326462,1773431432599,-168.0,0.00019398,2]
[408326463,1773431432608,-166.66,0.00019402,2]
[408326464,1773431432617,-2000.0,0.000195,2]
[408326465,1773431432627,-168.0,0.00019511,2]
[408326466,1773431432636,-181.08010149,0.00019541,2]
[408326467,1773431432646,-200.0,0.00019541,2]
[408326468,1773431432656,-192.6,0.00019552,2]
[408326469,1773431432664,-150.0,0.00019626,2]
[408326470,1773431432675,-500.0,0.00019626,2]
[408326471,1773431432687,-500.0,0.00019626,2]
[408326472,1773431432697,-150.0,0.00019626,2]
[408326473,1773431432706,-150.0,0.00019626,2]
[408326474,1773431432716,-150.0,0.00019626,2]
[408326475,1773431432725,-150.0,0.00019626,2]
[408326476,1773431432735,-150.0,0.00019626,2]
[408326477,1773431432744,-150.0,0.00019626,2]
[408326478,1773431432753,-500.0,0.00019626,2]
[408326479,1773431432763,-150.0,0.00019626,2]
[408326480,1773431432772,-150.0,0.00019626,2]
[408326481,1773431432782,-150.0,0.00019626,2]
[408326482,1773431432791,-150.0,0.00019626,2]
[408326483,1773431432800,-500.0,0.00019626,2]
[408326484,1773431432810,-150.0,0.00019626,2]
[408326485,1773431432819,-150.0,0.00019626,2]
[408326486,1773431432829,-150.0,0.00019626,2]
[408326487,1773431432839,-150.0,0.00019626,2]
[408326488,1773431432848,-150.0,0.00019626,2]
[408326489,1773431432857,-700.62114221,0.00019671,2]
[408326490,1773431432867,-150.0,0.00019681,2]
[408326491,1773431432880,-500.0,0.00019681,2]
[408326492,1773431432890,-500.0,0.00019681,2]
[408326493,1773431432900,-150.0,0.00019681,2]
[408326494,1773431432910,-150.0,0.00019681,2]
[408326495,1773431432919,-150.0,0.00019681,2]
[408326496,1773431432930,-150.0,0.00019681,2]
[408326497,1773431432940,-150.0,0.00019681,2]
[408326498,1773431432949,-150.0,0.00019681,2]
[408326499,1773431432959,-500.0,0.00019681,2]
[408326500,1773431432968,-150.0,0.00019681,2]
[408326501,1773431432978,-200.0,0.00019681,2]
[408326502,1773431432988,-500.0,0.00019681,2]
[408326503,1773431432998,-150.0,0.00019681,2]
[408326504,1773431433008,-150.0,0.00019681,2]
[408326505,1773431433017,-150.0,0.00019681,2]
[408326506,1773431433027,-150.0,0.00019681,2]
[408326507,1773431433037,-150.0,0.00019681,2]
[408326508,1773431433047,-150.0,0.00019714,2]
[408326509,1773431433058,-403.55983089,0.00019736,2]
[408326510,1773431433068,-500.0,0.00019736,2]
[408326511,1773431433079,-207.07135591,0.00019736,2]
[408326512,1773431433089,-300.0,0.00019736,2]
[408326513,1773431433099,-300.0,0.00019736,2]
[408326514,1773431433109,-150.0,0.00019736,2]
[408326515,1773431433119,-150.0,0.00019736,2]
[408326516,1773431433129,-150.0,0.00019736,2]
[408326517,1773431433138,-160.0,0.00019748,2]
[408326518,1773431433148,-166.66,0.00019779,2]
[408326519,1773431433158,-500.0,0.0001979,2]
[408326520,1773431433167,-250.0,0.0001979,2]
[408326521,1773431433177,-250.0,0.0001979,2]
[408326522,1773431433186,-1381.30115,0.000198,2]
[408326523,1773431433195,-153.56106976,0.00019829,2]
[408326524,1773431433204,-1381.30114,0.0001985,2]
[408326525,1773431433214,-2193.206,0.00019887,2]
[408326526,1773431433224,-3501.49414522,0.00019892,2]
[408326527,1773431433238,-2298.50585478,0.00019892,2]
[408326528,1773431433247,-229.76791069,0.00019897,2]
[408326529,1773431433257,-229.76791061,0.00019897,2]
[408326530,1773431433266,-229.76791061,0.00019898,2]
[408326531,1773431433276,-229.76791061,0.00019898,2]
[408326532,1773431433290,-229.76791061,0.00019898,2]
[408326533,1773431433299,-229.76791061,0.00019899,2]
[408326534,1773431433309,-229.76791061,0.00019899,2]
[408326535,1773431433319,-443.6869,0.000199,2]
[408326536,1773431433330,-1000.0,0.000199,2]
[408326537,1773431433339,-570.52043065,0.000199,2]
[408326538,1773431433352,-4407.65655967,0.000199,2]
[408326539,1773431433363,-1381.30115,0.000199,2]
[408326540,1773431433372,-2500.0,0.000199,2]
[408326541,1773431433382,-5800.0,0.000199,2]
[408326542,1773431433391,-197.23311885,0.000199,2]
[408326543,1773431433401,-224.81,0.00019907,2]
[408326544,1773431433410,-168.0,0.00019911,2]
[408326545,1773431433419,-1381.30114,0.0001995,2]
[408326546,1773431433429,-168.0,0.00019968,2]
[408326547,1773431433438,-432.55,0.00019988,2]
[408326548,1773431433448,-295.76807635,0.0001999,2]
[408326549,1773431433457,-295.76807635,0.0001999,2]
[408326550,1773431433471,-295.76807635,0.0001999,2]
[408326551,1773431433485,-1222.14101167,0.00019993,2]
[408326552,1773431433498,-33719.06594113,0.00019993,2]
[408326553,1773431433508,-61515.73286002,0.00019993,2]
[408326554,1773431433519,-675.0,0.00019993,2]
[408326555,1773431433530,-904.11328782,0.00019993,2]
[408326556,1773431433542,-951.09995283,0.00019993,2]
[408326557,1773431433557,-2345.77400893,0.00019993,2]
[408326558,1773431433569,-5531.0,0.00019993,2]
[408326559,1773431433581,-316.11449079,0.00019993,2]
[408326560,1773431433592,-1075.43,0.00019993,2]
[408326561,1773431433604,-482.5225775,0.00019993,2]
[408326562,1773431433615,-3113.11088746,0.00019993,2]
[408326566,1773431437926,-168.0,0.00018732,2]
[408326567,1773431437936,-229.76791061,0.00019899,2]
[408326568,1773431437945,-3720.28943831,0.00019993,2]
[408326569,1773431437957,-559.53366536,0.00019993,2]
[408326570,1773431437980,-420.6,0.00019993,2]
[408326571,1773431437994,-2225.31323038,0.00019993,2]
[408326572,1773431438007,-67998.25710857,0.00019993,2]
[408326573,1773431438034,-588.20640608,0.00019993,2]
[408326574,1773431438045,-18680.0,0.00019993,2]
[408326575,1773431438088,-654.6,0.00019993,2]
[408326579,1773431440024,-168.0,0.00018855,2]
[408326580,1773431440035,-229.76791061,0.000199,2]
[408326581,1773431440045,-1088.65751504,0.00019993,2]
[408326582,1773431440131,-378.66,0.00019993,2]
[408326583,1773431440504,-275.77490633,0.00019993,2]
[408326584,1773431440560,-534.0,0.00019993,2]
[408326600,1773431443159,-271.3570731,0.00019993,2]
[408326601,1773431443171,-6109.73578709,0.00019993,2]
[408326602,1773431443193,-8717.69888092,0.00019993,2]
[408326619,1773431446185,-168.0,0.00019107,2]
[408326620,1773431446194,-229.76791061,0.000199,2]
[408326621,1773431446203,-215188.30552033,0.00019993,2]
[408326622,1773431446215,-120289.47103944,0.00019993,2]
[408326623,1773431446225,-151.0,0.00019997,2]
[408326626,1773431446425,-151.0,0.00019997,2]
[408326627,1773431446436,-151.0,0.00019997,2]
[408326628,1773431446447,-500.0,0.00019999,2]
[408326631,1773431446456,-500.0,0.00019999,2]
[408326633,1773431446466,-500.0,0.00019999,2]
[408326634,1773431446475,-1275.58,0.00019999,2]
[408326635,1773431446483,-1275.58,0.00019999,2]
[408326636,1773431446493,-1275.58,0.00019999,2]
[408326637,1773431446502,-1275.58,0.00019999,2]
[408326638,1773431446511,-1275.58,0.00019999,2]
[408326639,1773431446520,-1275.58,0.00019999,2]
[408326640,1773431446530,-1275.58,0.00019999,2]
[408326641,1773431446540,-1275.58,0.00019999,2]
[408326642,1773431446550,-1275.58,0.00019999,2]
[408326643,1773431446560,-1275.58,0.00019999,2]
[408326644,1773431446571,-1275.58,0.00019999,2]
[408326645,1773431446581,-1275.58,0.00019999,2]
[408326646,1773431446590,-1275.58,0.00019999,2]
[408326647,1773431446600,-1275.58,0.00019999,2]
[408326648,1773431446610,-1275.58,0.00019999,2]
[408326649,1773431446624,-1275.58,0.00019999,2]
[408326650,1773431446633,-1275.58,0.00019999,2]
[408326651,1773431446643,-1275.58,0.00019999,2]
[408326652,1773431446652,-1275.58,0.00019999,2]
[408326653,1773431446661,-1275.58,0.00019999,2]
[408326654,1773431446671,-1275.58,0.00019999,2]
[408326655,1773431446681,-1275.58,0.00019999,2]
[408326656,1773431446690,-1275.58,0.00019999,2]
[408326657,1773431446699,-1275.62905965,0.00019999,2]
[408326658,1773431446708,-500.0,0.00019999,2]
[408326659,1773431446718,-150.55713668,0.00019999,2]